fUSD/lending_fUSD_20250823
["ID","MTS","AMOUNT","RATE_DAILY","PERIOD"]
[380984754,1755918650621,-206.9321113,0.00013698,2]
[380984755,1755918650631,-400.0,0.00013698,2]
[380984756,1755918650641,-446.19271015,0.00013698,2]
[380984757,1755918650650,-400.0,0.00013698,2]
[380984758,1755918650660,-400.0,0.00013698,2]
[380984759,1755918650670,-189.66779827,0.00013698,2]
[380984760,1755918650812,-211.15030155,0.00013698,2]
[380984761,1755918650821,-370.67679647,0.00013698,2]
[380984762,1755918650946,-29.32320353,0.00013698,2]
[380984763,1755918650956,-400.0,0.00013698,2]
[380984764,1755918650966,-400.0,0.00013698,2]
[380984765,1755918650976,-132.66679647,0.00013698,2]
[380984766,1755918652485,-400.0,0.00013698,2]
[380984767,1755918652495,-460.41,0.00013698,2]
[380984768,1755918652504,-400.0,0.00013698,2]
[380984769,1755918652514,-400.0,0.00013698,2]
[380984770,1755918652527,-958.82699333,0.00013698,2]
[380984771,1755918652537,-389.83192814,0.00013698,2]
[380984772,1755918652546,-939.28,0.00013698,2]
[380984773,1755918652556,-402.59196928,0.00013698,2]
[380984774,1755918652566,-400.0,0.00013698,2]
[380984775,1755918652576,-400.0,0.00013698,2]
[380984776,1755918652586,-495.31,0.00013698,2]
[380984777,1755918652596,-969.51,0.00013698,2]
[380984778,1755918652606,-400.38168366,0.00013698,2]
[380984779,1755918652616,-546.3,0.00013698,2]
[380984780,1755918652626,-400.0,0.00013698,2]
[380984781,1755918652636,-633.69,0.00013698,2]
[380984782,1755918652646,-500.0,0.00013698,2]
[380984783,1755918652655,-500.0,0.00013698,2]
[380984784,1755918652666,-500.0,0.00013698,2]
[380984785,1755918652675,-400.0,0.00013698,2]
[380984786,1755918652685,-659.98,0.00013698,2]
[380984787,1755918652695,-400.0,0.00013698,2]
[380984788,1755918652705,-500.0,0.00013698,2]
[380984789,1755918652715,-400.0,0.00013698,2]
[380984790,1755918652725,-400.0,0.00013698,2]
[380984791,1755918652735,-500.0,0.00013698,2]
[380984792,1755918652745,-400.0,0.00013698,2]
[380984793,1755918652754,-403.24,0.00013698,2]
[380984794,1755918652764,-400.0,0.00013698,2]
[380984795,1755918652774,-432.51936995,0.00013698,2]
[380984796,1755918652784,-598.61,0.00013698,2]
[380984797,1755918652794,-400.0,0.00013698,2]
[380984798,1755918652804,-724.92,0.00013698,2]
[380984799,1755918652814,-401.41463299,0.00013698,2]
[380984800,1755918652824,-400.0,0.00013698,2]
[380984801,1755918652834,-533.35,0.00013698,2]
[380984802,1755918652844,-639.89,0.00013698,2]
[380984803,1755918652855,-480.14834608,0.00013698,2]
[380984804,1755918652866,-526.58,0.00013698,2]
[380984805,1755918652877,-549.63,0.00013698,2]
[380984806,1755918652887,-888.92,0.00013698,2]
[380984807,1755918652898,-331.32066352,0.00013698,2]
[380984808,1755918652908,-400.0,0.00013698,2]
[380984809,1755918652917,-400.0,0.00013698,2]
[380984810,1755918652927,-400.0,0.00013698,2]
[380984811,1755918652937,-1109.65,0.00013698,2]
[380984812,1755918652947,-488.75,0.00013698,2]
[380984813,1755918652957,-446.24,0.00013698,2]
[380984814,1755918652966,-400.0,0.00013698,2]
[380984815,1755918652976,-372.91706575,0.00013698,2]
[380984816,1755918652987,-400.0,0.00013698,2]
[380984817,1755918652996,-400.0,0.00013698,2]
[380984818,1755918653006,-714.67,0.00013698,2]
[380984819,1755918653015,-851.63,0.00013698,2]
[380984820,1755918653025,-400.0,0.00013698,2]
[380984821,1755918653034,-846.69,0.00013698,2]
[380984822,1755918653044,-400.0,0.00013698,2]
[380984823,1755918653054,-400.0,0.00013698,2]
[380984824,1755918653064,-400.0,0.00013698,2]
[380984825,1755918653074,-400.0,0.00013698,2]
[380984826,1755918653083,-401.86523998,0.00013698,2]
[380984827,1755918653093,-400.0,0.00013698,2]
[380984828,1755918653103,-401.93741075,0.00013698,2]
[380984829,1755918653113,-620.77,0.00013698,2]
[380984830,1755918653124,-400.0,0.00013698,2]
[380984831,1755918653134,-400.0,0.00013698,2]
[380984832,1755918653144,-400.0,0.00013698,2]
[380984833,1755918653154,-167.17026854,0.00013698,2]
[380984834,1755918653187,-371.96973146,0.00013698,2]
[380984835,1755918653197,-401.03033315,0.00013698,2]
[380984836,1755918653208,-400.0,0.00013698,2]
[380984837,1755918653218,-400.0,0.00013698,2]
[380984838,1755918653228,-400.0,0.00013698,2]
[380984839,1755918653238,-400.0,0.00013698,2]
[380984840,1755918653247,-578.07,0.00013698,2]
[380984841,1755918653257,-400.0,0.00013698,2]
[380984842,1755918653267,-402.38534189,0.00013698,2]
[380984843,1755918653277,-499.07,0.00013698,2]
[380984844,1755918653286,-400.0,0.00013698,2]
[380984845,1755918653296,-51.97459353,0.00013698,2]
[380984846,1755918660931,-400.0,0.00011363,2]
[380984847,1755918668067,-598.63557058,0.00010669,2]
[380984848,1755918668764,500.0,9.999e-05,2]
[380984849,1755918675562,-563.96,0.00010669,2]
[380984850,1755918683025,-400.0,0.00010669,2]
[380984851,1755918690146,-400.0,0.00010669,2]
[380984852,1755918690428,5000.0,0.00028767,120]
[380984853,1755918697207,-400.0,0.00010669,2]
[380984854,1755918704329,-766.22,0.00010669,2]
[380984855,1755918711925,-114.17933928,0.00010669,2]
[380984856,1755918711982,-222.72132144,0.00010669,2]
[380984857,1755918719530,-400.0,0.00010973,2]
[380984858,1755918726601,-100.0,0.00010972,2]
[380984859,1755918726624,-200.0,0.00010972,2]
[380984860,1755918733782,-100.0,0.00010973,2]
[380984861,1755918733953,-202.63329117,0.00010973,2]
[380984862,1755918741782,-102.63329117,0.00010973,2]
[380984863,1755918741944,-194.73341766,0.00010973,2]
[380984864,1755918749343,-150.0,0.00010258,2]
[380984865,1755918749365,-100.0,0.00010258,2]
[380984866,1755918757733,-244.27,0.00010973,2]
[380984867,1755918758608,-255.73,0.00010973,2]
[380984868,1755918763408,-401.41986197,0.00010973,2]
[380984869,1755918770473,-98.58013803,0.00010973,2]
[380984870,1755918770529,-202.83972394,0.00010973,2]
[380984871,1755918778002,-297.16027606,0.00010973,2]
[380984872,1755918778036,-49.25944788,0.00011211,2]
[380984873,1755918785508,-400.0,0.00011211,2]
[380984874,1755918792529,-75.95363018,0.00011211,2]
[380984875,1755918792552,-248.09273964,0.00011211,2]
[380984876,1755918799705,-172.5478509,0.00011332,2]
[380984877,1755918799752,-64.5142982,0.00011363,2]
[380984878,1755918807149,-88.06156866,0.00011363,2]
[380984879,1755918807202,-223.87686268,0.0001152,2]
[380984880,1755918814165,-76.12313732,0.0001152,2]
[380984881,1755918814216,-292.85372536,0.0001207,2]
[380984882,1755918821442,-17.14627464,0.0001207,2]
[380984883,1755918821470,-33.11745072,0.0001207,2]
[380984884,1755918821640,-466.88254928,0.0001207,2]
[380984885,1755918828740,-150.0,0.0001207,2]
[380984886,1755918828765,-100.0,0.0001207,2]
[380984887,1755918835886,-400.0,0.00012652,2]
[380984888,1755918844636,-229.94,0.00012888,2]
[380984889,1755918845060,-20.06,0.00012888,2]
[380984890,1755918850733,-96.98,0.00013033,2]
[380984891,1755918850755,-206.04,0.00013033,2]
[380984892,1755918858248,-401.97726713,0.00013186,2]
[380984893,1755918866816,-400.0,0.000131,2]
[380984894,1755918872801,-18.06,0.000131,2]
[380984895,1755918872829,-24.82273287,0.00013186,2]
[380984896,1755918872898,-167.74242296,0.00013186,2]
[380984897,1755918910774,5100.0,0.0001477,9]
[380984898,1755918944322,5100.0,0.00015,10]
[380984899,1755918952408,-150.0,0.00012794,2]
[380984900,1755918952436,-179.31,0.00013005,2]
[380984901,1755918952676,-251.2,0.00013005,2]
[380984902,1755918959188,-427.84,0.00013005,2]
[380984903,1755918959279,-65.78,0.00013005,2]
[380984905,1755918982845,5000.0,0.0002876,120]
[380984906,1755919009806,-1000.0,0.00012715,2]
[380984907,1755919009835,-351.78,0.00013005,2]
[380984908,1755919010166,-343.43,0.00013005,2]
[380984909,1755919232004,-167.74242296,0.00012446,2]
[380984910,1755919253855,-179.31,0.00012446,2]
[380984911,1755919307071,-14.23757704,0.00012446,2]
[380984912,1755919307191,-373.50211305,0.00012446,2]
[380984913,1755919314775,-400.0,0.00012446,2]
[380984914,1755919321791,-206.04,0.00012446,2]
[380984915,1755919328865,-251.2,0.00012446,2]
[380984916,1755919335901,-427.84,0.00012446,2]
[380984917,1755919350479,-351.78,0.00012446,2]
[380984918,1755919357792,-343.43,0.00012446,2]
[380984919,1755919364771,-229.94,0.00012446,2]
[380984920,1755919378680,-150.0,0.00012446,2]
[380984921,1755919523592,-1000.0,0.00011,2]
[380984922,1755919531699,-400.0,0.00011,2]
[380984923,1755919537958,-373.50211305,0.00011,2]
[380984924,1755919546142,-400.0,0.00011,2]
[380984925,1755919551383,160.0,0.00012298,7]
[380984926,1755919553815,-206.04,0.00011,2]
[380984927,1755919560641,-251.2,0.00011,2]
[380984928,1755919568243,-427.84,0.00011,2]
[380984929,1755919575576,-351.78,0.00011,2]
[380984930,1755919586446,-343.43,0.00011,2]
[380984931,1755919594280,-229.94,0.00010999,2]
[380984932,1755919601354,-150.0,0.00010999,2]
[380984933,1755919608560,-47.68242296,0.00010999,2]
[380984934,1755919608657,-72.37757704,0.00010999,2]
[380984935,1755919608667,-47.68242296,0.00010999,2]
[380984936,1755919615386,-53.79695228,0.00010999,2]
[380984937,1755919615402,-71.71609544,0.00010999,2]
[380984938,1755919615412,-53.79695228,0.00010999,2]
[380984939,1755919629949,-292.85372536,0.00010999,2]
[380984940,1755919651621,-7.14627464,0.00010999,2]
[380984941,1755919651651,-150.0,0.00010999,2]
[380984942,1755919652190,-7.14627464,0.00010999,2]
[380984943,1755919652206,-150.0,0.00010999,2]
[380984944,1755919652231,-58.99152257,0.00010999,2]
[380984945,1755919652241,-93.59847743,0.00010999,2]
[380984946,1755919658642,-20.5491405,0.00010999,2]
[380984947,1755919658656,-108.901719,0.00010999,2]
[380984948,1755919658665,-20.5491405,0.00011,2]
[380984950,1755919673584,-223.87686268,0.00011,2]
[380984951,1755919687102,-400.0,0.00011,2]
[380984952,1755919708309,-172.5478509,0.000109,2]
[380984953,1755919718327,-247.19586091,0.00010779,2]
[380984954,1755919719631,-2.80413909,0.00010779,2]
[380984955,1755919722549,-73.24429259,0.000109,2]
[380984956,1755919722740,-73.24429259,0.000109,2]
[380984957,1755919722764,-253.51141482,0.000109,2]
[380984958,1755919758371,-248.09273964,0.00010781,2]
[380984965,1755919831680,-841.91726036,0.00010781,2]
[380984966,1755919831689,-500.0,0.00010973,2]
[380984967,1755919831699,-500.0,0.00010973,2]
[380984968,1755919831709,-500.62102044,0.00010973,2]
[380984969,1755919831719,-563.98351728,0.00010973,2]
[380984970,1755919831729,-500.0,0.00010973,2]
[380984972,1755919831739,-501.11947519,0.00010973,2]
[380984974,1755919831749,-502.90032224,0.00010973,2]
[380984976,1755919831758,-500.0,0.00010973,2]
[380984978,1755919831769,-500.0,0.00010973,2]
[380984980,1755919831779,-500.0,0.00010973,2]
[380984982,1755919831789,-1200.0,0.00010999,2]
[380984984,1755919831798,-300.0,0.00010999,2]
[380984986,1755919831808,-150.0,0.00010999,2]
[380984989,1755919831820,-20387.40773035,0.00011,2]
[380985004,1755919837737,-349.38153342,0.00011,2]
[380985008,1755919837757,-400.0,0.00011,2]
[380985012,1755919837792,-4254.68585677,0.00011,2]
[380985058,1755919839366,-1083.81940273,0.00011,2]
[380985059,1755919839428,-1097.79644216,0.00011,2]
[380985060,1755919839475,-319.76983096,0.00011,2]
[380985062,1755919839488,-1162.1064696,0.00011,2]
[380985063,1755919839499,-4722.43988398,0.00011,2]
[380985064,1755919839586,-1660427.08626896,0.00011,2]
[380985065,1755919839596,-10108.09,0.00011,2]
[380985066,1755919839607,-146673.42112309,0.00011,2]
[380985067,1755919839619,-732.18335078,0.00011,2]
[380985068,1755919839699,-371.48587076,0.00011,2]
[380985096,1755919842469,-8138.81865022,0.00011,2]
[380985097,1755919842483,-654.65606349,0.00011,2]
[380985098,1755919842494,-1059.57,0.00011,2]
[380985099,1755919842506,-964.74373706,0.00011,2]
[380985101,1755919845796,-1134.71515,0.00011,2]
[380985105,1755919949590,-647.58091703,0.00010726,2]
[380985106,1755919957599,-400.0,0.00010726,2]
[380985107,1755919963606,-373.50211305,0.00010726,2]
[380985108,1755919970824,-400.0,0.00010726,2]
[380985109,1755919978929,-206.04,0.00010726,2]
[380985110,1755919985140,-251.2,0.00010726,2]
[380985111,1755919993290,-427.84,0.00010726,2]
[380985112,1755920001639,-351.78,0.00010726,2]
[380985113,1755920036538,-223.87686268,0.00010715,2]
[380985114,1755920086660,-150.0,0.0001068,2]
[380985115,1755920146216,-151.003437,0.00010312,2]
[380985116,1755920148404,-200.0,0.00010312,2]
[380985117,1755920151036,-290.96,0.00010312,2]
[380985118,1755920153270,-17.416563,0.00010312,2]
[380985119,1755920276654,-150.0,0.00010283,2]
[380985120,1755920312569,-50.0,0.00010283,2]
[380985121,1755920312652,-243.43,0.00010674,2]
[380985122,1755920319577,-229.94,0.00010674,2]
[380985123,1755920427695,-52.12847235,0.00010674,2]
[380985124,1755920428183,-45.7430553,0.00010679,2]
[380985125,1755920526881,-134.45376648,0.00010679,2]
[380985126,1755920526926,-23.9461924,0.00010679,2]
[380985127,1755920533952,-202.63329117,0.00010686,2]
[380985128,1755920552183,-160.34710236,0.00010279,2]
[380985129,1755920577460,-5.62289764,0.00010279,2]
[380985130,1755920577486,-227.20320336,0.0001058,2]
[380985131,1755920579256,-272.79679664,0.0001058,2]
[380985132,1755920634906,500.0,0.00028767,120]
[380985133,1755920659931,-382.882241,0.00010204,2]
[380985134,1755920662549,-167.491163,0.00010204,2]
[380985135,1755920665802,-516.41153405,0.00010204,2]
[380985136,1755920668102,-122.77506195,0.00010204,2]
[380985137,1755920669716,-300.7924,0.00010207,2]
[380985138,1755920672498,-174.20580195,0.00010207,2]
[380985139,1755920674664,-203.88763409,0.00010207,2]
[380985140,1755920676377,-223.42967371,0.00010207,2]
[380985141,1755920679334,-162.06,0.00010207,2]
[380985142,1755920680716,160.0,9.836e-05,7]
[380985143,1755920684148,-243.69293746,0.00010206,2]
[380985144,1755920684173,-138.63502454,0.00010206,2]
[380985145,1755920686260,-126.971564,0.00010206,2]
[380985146,1755920686287,-105.21080029,0.00010207,2]
[380985147,1755920689839,-19.97368996,0.00010207,2]
[380985148,1755920689867,-280.02631004,0.0001021,2]
[380985149,1755920694472,-162.06,0.0001021,2]
[380985150,1755920696733,-239.37454962,0.0001021,2]
[380985151,1755920697706,250.0,9.676e-05,2]
[380985152,1755920700708,-162.06,0.0001021,2]
[380985153,1755920702384,-285.08,0.0001021,2]
[380985154,1755920734127,-189.17440807,0.00010118,2]
[380985155,1755920734464,-57.30793134,0.0001021,2]
[380985156,1755920734714,727.99,9.632e-05,2]
[380985157,1755920765866,-3.651209,0.0001021,2]
[380985158,1755920765996,-392.697582,0.00010212,2]
[380985159,1755920799389,-462.66,0.00010212,2]
[380985160,1755920831780,-65.797582,0.00010212,2]
[380985161,1755920832207,-268.404836,0.00010212,2]
[380985162,1755920850972,200.0,0.000139,5]
[380985163,1755920853704,200.0,0.000149,5]
[380985164,1755920858797,-244.27,0.00010215,2]
[380985165,1755920882235,288.0,0.00028767,120]
[380985166,1755920886114,-255.73,0.00010215,2]
[380985167,1755920912963,-401.41986197,0.00010215,2]
[380985168,1755920937714,1000.0,9.675e-05,2]
[380985169,1755920941117,-202.83972394,0.00010215,2]
[380985170,1755920967591,-85.30041409,0.00010215,2]
[380985171,1755920967633,-126.55944788,0.00010218,2]
[380985172,1755920980461,3022.01,9.701e-05,2]
[380985173,1755920980483,5000.0,9.701e-05,2]
[380985174,1755920980505,1071.1,9.701e-05,2]
[380985175,1755920994865,-400.0,0.00010218,2]
[380985176,1755921028290,-400.0,0.00010218,2]
[380985182,1755921032076,-263.00055212,0.00010218,2]
[380985183,1755921032087,-150.0,0.00010219,2]
[380985184,1755921032098,-1189.56,0.00010221,2]
[380985185,1755921032109,-1189.56,0.00010223,2]
[380985186,1755921032119,-1189.56,0.00010226,2]
[380985187,1755921032129,-1189.56,0.00010229,2]
[380985188,1755921032139,-1189.56,0.00010231,2]
[380985189,1755921032150,-155.0,0.00010233,2]
[380985190,1755921032164,-1200.0,0.00010233,2]
[380985191,1755921032176,-1189.56,0.00010234,2]
[380985192,1755921032186,-300.0,0.00010236,2]
[380985193,1755921032197,-1189.56,0.00010237,2]
[380985194,1755921032207,-1189.56,0.00010239,2]
[380985195,1755921032222,-1189.56,0.00010242,2]
[380985196,1755921032232,-1189.56,0.00010245,2]
[380985197,1755921032243,-1189.56,0.00010247,2]
[380985198,1755921032253,-1189.56,0.0001025,2]
[380985199,1755921032263,-1189.56,0.00010253,2]
[380985200,1755921032272,-1189.56,0.00010255,2]
[380985201,1755921032283,-500.0,0.00010579,2]
[380985202,1755921032296,-2500.0,0.00010713,2]
[380985203,1755921032307,-150.0,0.00010796,2]
[380985204,1755921032317,-200.0,0.000108,3]
[380985205,1755921032327,-727.99,0.00010836,2]
[380985206,1755921032337,-1000.0,0.00010884,2]
[380985207,1755921032347,-1108.57586686,0.00010891,2]
[380985208,1755921032357,-583.71307217,0.000109,2]
[380985209,1755921032366,-500.0,0.000109,3]
[380985210,1755921032376,-150.0,0.00010959,2]
[380985211,1755921032386,-400.0,0.00010973,2]
[380985212,1755921032396,-325.32,0.00010973,2]
[380985213,1755921032406,-500.0,0.00010973,2]
[380985214,1755921032415,-500.0,0.00010973,2]
[380985215,1755921032425,-500.0,0.00010973,2]
[380985216,1755921032434,-500.0,0.00010973,2]
[380985217,1755921032444,-463.00762243,0.00010973,2]
[380985218,1755921032454,-500.0,0.00010973,2]
[380985219,1755921032464,-500.0,0.00010973,2]
[380985220,1755921032473,-500.0,0.00010973,2]
[380985221,1755921032483,-500.0,0.00010973,2]
[380985222,1755921032493,-500.0,0.00010973,2]
[380985223,1755921032502,-464.05391083,0.00010973,2]
[380985224,1755921032512,-500.0,0.00010973,2]
[380985225,1755921032521,-500.0,0.00010973,2]
[380985226,1755921032531,-500.0,0.00010973,2]
[380985227,1755921032541,-500.0,0.00010973,2]
[380985228,1755921032551,-500.0,0.00010974,2]
[380985229,1755921032562,-500.0,0.00010993,2]
[380985230,1755921032572,-1000.0,0.00010999,2]
[380985231,1755921032582,-296.734,0.00010999,2]
[380985232,1755921032595,-3854.41958542,0.00010999,2]
[380985233,1755921032608,-2664.34441458,0.00010999,2]
[380985234,1755921032618,-1634.89558542,0.00010999,2]
[380985235,1755921032659,-8024.15962941,0.00010999,2]
[380985236,1755921032668,-2721.20034023,0.00011,2]
[380985237,1755921032680,-2614.55760203,0.00011,2]
[380985238,1755921032690,-1892.35526599,0.00011,2]
[380985239,1755921032740,-2341.10105796,0.00011,2]
[380985240,1755921033129,-168.7348645,0.0001089,2]
[380985241,1755921033140,-282.08228563,0.0001089,2]
[380985242,1755921033151,-500.0,0.0001089,2]
[380985243,1755921033163,-280.49683597,0.0001089,2]
[380985244,1755921033174,-179.53531221,0.0001089,2]
[380985245,1755921033185,-577.90579885,0.0001089,2]
[380985246,1755921033196,-67564.58408558,0.00011,2]
[380985247,1755921033284,-80924.11942106,0.00011,2]
[380985248,1755921033297,-47252.19186398,0.00011,2]
[380985249,1755921033310,-36882.97890773,0.00011,2]
[380985250,1755921033322,-591.3901,0.00011,2]
[380985267,1755921039699,-416.95648445,0.00011,2]
[380985268,1755921040050,-259.54191392,0.00011,2]
[380985269,1755921040077,-676.74373075,0.00011,2]
[380985270,1755921040088,-1157.4583372,0.00011,2]
[380985271,1755921040099,-349.54550005,0.00011,2]
[380985272,1755921040127,-650.1495,0.00011,2]
[380985275,1755921042783,-189.17440806,0.000109,2]
[380985276,1755921042792,-96.49354147,0.00011,2]
[380985277,1755921042908,-795.55519244,0.00011,2]
[380985283,1755921045693,-13273.75756175,0.00011,2]
[380985284,1755921045799,-579.3,0.00011,2]
[380985285,1755921045904,-585.02576059,0.00011,2]
[380985286,1755921045915,-2825.28444642,0.00011,2]
[380985287,1755921045936,-3019.2499995,0.00011,2]
[380985288,1755921046015,-2117.8351399,0.00011,2]
[380985289,1755921046026,-4624.20000001,0.00011,2]
[380985291,1755921076644,3928.9,9.703e-05,2]
[380985292,1755921076664,2000.0,9.703e-05,2]
[380985293,1755921076684,1000.0,9.703e-05,2]
[380985294,1755921076706,500.0,9.703e-05,2]
[380985295,1755921076733,4079.45,9.703e-05,2]
[380985296,1755921085954,-397.8981294,0.00010115,2]
[380985297,1755921093861,-102.1018706,0.00010115,2]
[380985298,1755921094350,-195.7962588,0.00010218,2]
[380985299,1755921100628,-93.18290938,0.00010218,2]
[380985300,1755921100675,-213.63418124,0.00010218,2]
[380985301,1755921107747,-113.63418124,0.00010218,2]
[380985302,1755921107893,-172.73163752,0.00010218,2]
[380985303,1755921115713,-200.0,0.00010218,2]
[380985304,1755921122756,-123.42062697,0.00010218,2]
[380985305,1755921122792,-153.15874606,0.00010658,2]
[380985306,1755921130051,-261.6,0.00010658,2]
[380985307,1755921138502,-126.11125394,0.00010658,2]
[380985308,1755921138843,-8.03692592,0.0001068,2]
[380985309,1755921147726,-178.6077352,0.0001068,2]
[380985312,1755921193753,-153.25,0.00010134,2]
[380985313,1755921244802,-98.43533888,0.0001068,2]
[380985314,1755921244823,-800.0,0.00010779,2]
[380985315,1755921244843,-300.0,0.00010779,2]
[380985316,1755921244864,-3801.56466112,0.0001078,2]
[380985317,1755921253433,-1413.44733888,0.0001078,2]
[380985318,1755921253458,-237.388,0.0001078,2]
[380985319,1755921253479,-221.21292915,0.000109,2]
[380985320,1755921253499,-701.0,0.00010959,2]
[380985321,1755921253522,-500.0,0.00010973,2]
[380985322,1755921253543,-467.179508,0.00010973,2]
[380985323,1755921253565,-266.38312464,0.00010973,2]
[380985324,1755921253589,-150.0,0.00010989,2]
[380985325,1755921253609,-1000.0,0.0001099,2]
[380985326,1755921253630,-43.38909933,0.0001099,2]
[380985327,1755921323404,-171.91288187,0.00010127,2]
[380985328,1755921326804,-28.08711813,0.00010127,2]
[380985329,1755921364440,-213.26028519,0.000108,2]
[380985330,1755921364766,-286.73971481,0.0001089,2]
[380985331,1755921429234,1492.63,9.752e-05,2]
[380985332,1755921517523,1000.0,0.00028767,120]
[380985333,1755921559986,-166.08,0.00010119,2]
[380985334,1755921601956,-140.56852663,0.00010599,2]
[380985335,1755921601980,-39.95294674,0.00010599,2]
[380985336,1755921609681,-400.0,0.00010599,2]
[380985337,1755921616809,-24.83619243,0.00010599,2]
[380985338,1755921616840,-296.52761514,0.00010599,2]
[380985339,1755921624883,-167.74402008,0.00010599,2]
[380985340,1755921625931,-64.51195984,0.00010599,2]
[380985341,1755921630853,-390.8233972,0.00010599,2]
[380985342,1755921638303,-302.47033935,0.00010599,2]
[380985343,1755921647018,-183.632132,0.00010599,2]
[380985344,1755921666887,160.0,0.00010083,7]
[380985345,1755921679571,-229.26255558,0.00010083,2]
[380985346,1755921682371,-159.92796578,0.00010083,2]
[380985347,1755921684730,-704.82,0.00010083,2]
[380985348,1755921685088,-69.18947864,0.00010083,2]
[380985349,1755921723736,-245.38609304,0.00010127,2]
[380985350,1755921799229,77460.83115955,0.0002876,120]
[380985351,1755921827083,16992.48741063,0.00028767,120]
[380985352,1755921957425,1499.35,0.00010033,2]
[380985353,1755921958831,-4.61390696,0.00010127,2]
[380985354,1755921975231,-285.08835941,0.00010131,2]
[380985355,1755921977796,-400.0,0.00010131,2]
[380985356,1755921985959,-293.1411617,0.00010131,2]
[380985357,1755922041652,200.0,0.000139,5]
[380985358,1755922043548,200.0,0.000149,5]
[380985359,1755922106420,-176.05255946,0.000106,3]
[380985360,1755922155002,518.82,9.975e-05,2]
[380985362,1755922231895,-21.77047889,0.00010131,2]
[380985363,1755922231907,-23.94744054,0.000106,3]
[380985364,1755922231916,-398.0,0.00010685,2]
[380985365,1755922231926,-47.50186305,0.000107,3]
[380985366,1755922232047,-452.49813695,0.000107,3]
[380985367,1755922232057,-48.78322893,0.000108,3]
[380985368,1755922232069,-751.21677107,0.000108,3]
[380985369,1755922232079,-672.47588,0.0001089,2]
[380985370,1755922232089,-214.25270584,0.00010896,2]
[380985371,1755922232099,-160.34710236,0.00010896,2]
[380985372,1755922232108,-164.15132849,0.00010897,2]
[380985373,1755922232118,-164.15132849,0.00010899,2]
[380985374,1755922232128,-1200.0,0.00010899,2]
[380985375,1755922232138,-300.0,0.00010899,2]
[380985376,1755922232148,-500.32549044,0.000109,2]
[380985377,1755922232159,-1100.0,0.000109,3]
[380985378,1755922232170,-271.3355962,0.000109,2]
[380985379,1755922232179,-165.37,0.00010942,2]
[380985380,1755922232188,-400.0,0.00010958,2]
[380985381,1755922232198,-150.0,0.00010959,2]
[380985382,1755922232207,-321.0,0.00010959,2]
[380985383,1755922232217,-1537.0,0.00010959,2]
[380985384,1755922232227,-400.0,0.00010959,2]
[380985385,1755922232236,-150.0,0.00010972,2]
[380985386,1755922232245,-462.66,0.00010973,2]
[380985387,1755922232254,-386.43558518,0.00010973,2]
[380985388,1755922232264,-435.65674748,0.00010973,2]
[380985389,1755922232274,-500.0,0.00010973,2]
[380985390,1755922232284,-500.0,0.00010973,2]
[380985391,1755922232295,-500.0,0.00010973,2]
[380985393,1755922232306,-500.0,0.00010973,2]
[380985396,1755922232315,-500.0,0.00010973,2]
[380985398,1755922232325,-500.0,0.00010973,2]
[380985400,1755922232335,-500.0,0.00010973,2]
[380985402,1755922232345,-4095.77504201,0.00010988,2]
[380985412,1755922232491,-977.83223282,0.00010988,2]
[380985413,1755922232502,-2689.82043077,0.00010988,2]
[380985414,1755922232512,-956.61090067,0.0001099,2]
[380985415,1755922232521,-800.0,0.0001099,2]